Cogmind - Beta 10.1 @@@ ROGUE MODE // 2021.04.28 @ 16:17:52 Player: Farfid Result: Destroyed by P-80 Master with Gamma Rifle Performance ------------- Evolutions (9) 4500 Regions Visited (29) 5800 Robots Destroyed (398) 1990 Value Destroyed (27011) 27011 Prototype IDs (57) 1140 Alien Tech Used (0) 0 Bonus (20071) 20071 TOTAL SCORE: 60512 Bonus ------- Triggered High Security 500 High Alert Combat Kills 7099 Follower Combat Kills 6722 Entered Garrisons 2200 Used RIF Installer 5500 Aligned with FarCom 300 Friendly Fire -2250 Cogmind --------- Core Integrity 0/1600 Matter 151/550 Energy 38/100 System Corruption 17% Temperature Cool (0) Movement Core (2000) Ox39 Location -1/Access Parts ------- > --- POWER (2) -------- (None) > --- PROPULSION (5) --- (None) > --- UTILITY (14) ----- Large Storage Unit High-capacity Storage Unit High-capacity Storage Unit High-capacity Storage Unit Matter Compressor Relay Coupler [Swarmer] (22) > --- WEAPON (4) ------- Shock Maul > --- INVENTORY (34) --- Myomer Leg Armored Wheel Experimental Coolant Injector High-capacity Storage Unit Experimental Energy Well (1000) Relay Coupler [NC] (37) Relay Coupler [Swarmer] (56) Relay Coupler [Swarmer] (49) Relay Coupler [Grunt] (43) Relay Coupler [Brawler] (33) Relay Coupler [Brawler] (52) Relay Coupler [Duelist] (37) Relay Coupler [Duelist] (36) Relay Coupler [Sentry] (34) Relay Coupler [Sentry] (29) Relay Coupler [Sentry] (31) Relay Coupler [Hunter] (23) Relay Coupler [Hunter] (21) Relay Coupler [Hunter] (21) Relay Coupler [Hunter] (28) Relay Coupler [Hunter] (25) Relay Coupler [Hunter] (20) Relay Coupler [Behemoth] (12) Relay Coupler [Behemoth] (12) Relay Coupler [Behemoth] (14) Enhanced Nova Cannon Railgun Hypervelocity Railgun Advanced Remote Datajack Segregator Peak State ------------ > --- POWER ------------ Light Quantum Reactor Light Quantum Reactor > --- PROPULSION ------- Myomer Leg Myomer Leg Biometal Leg Biometal Leg Centrium Leg > --- UTILITY ---------- Advanced Cooling System Experimental Coolant Injector Large Storage Unit Large Storage Unit Large Storage Unit High-capacity Storage Unit High-capacity Storage Unit High-capacity Storage Unit Centrium Medium Armor Plating Point Defense Array Relay Coupler [Swarmer] Relay Coupler [Grunt] Relay Coupler [Demolisher] Relay Coupler [Hunter] > --- WEAPON ----------- Firepult Hypervelocity Railgun Advanced Remote Datajack > --- INVENTORY -------- Particle Reactor Armored Wheel Experimental Coolant Injector High-capacity Storage Unit Experimental Energy Well Matter Compressor Improved Utility Shielding Centrium Medium Armor Plating Relay Coupler [NC] Relay Coupler [Swarmer] Relay Coupler [Swarmer] Relay Coupler [Grunt] Relay Coupler [Brawler] Relay Coupler [Brawler] Relay Coupler [Duelist] Relay Coupler [Duelist] Relay Coupler [Sentry] Relay Coupler [Sentry] Relay Coupler [Sentry] Relay Coupler [Sentry] Relay Coupler [Hunter] Relay Coupler [Hunter] Relay Coupler [Hunter] Relay Coupler [Hunter] Relay Coupler [Hunter] Relay Coupler [Hunter] Relay Coupler [Behemoth] Relay Coupler [Behemoth] Relay Coupler [Behemoth] Gamma Rifle Enhanced Nova Cannon Railgun Railgun Helical Railgun Multirail Fusion Bomb Launcher Advanced Remote Datajack Advanced Remote Datajack Shock Maul Segregator [Rating: 168] Favorites ----------- Power Light Quantum Reactor Engine Light Angular Momentum Engine Power Core Micro Fission Core Reactor Light Quantum Reactor Propulsion Armored Wheel Treads Medium Treads Leg Myomer Leg Wheel Armored Wheel Hover Unit Improved Antigrav System Flight Unit Xenon Bombardment Thruster Utility Large Storage Unit Device Advanced Heat Sink Storage Large Storage Unit Processor Improved Terrain Scan Processor Hackware Relay Coupler [Grunt] Protection Core Shielding Weapon Gamma Rifle Energy Gun Gamma Rifle Energy Cannon Enhanced Nova Cannon Ballistic Gun Gauss Rifle Launcher Fusion Bomb Launcher Special Weapon Advanced Remote Datajack Impact Weapon Shock Maul Slashing Weapon Scythe Special Melee Weapon Advanced Datajack Build | -11 -10 -10 -9 -9 -9 -8 -8 -8 -8 -8 -7 -7 -7 -7 -6 -6 -5 -5 -4 -4 -3 -3 -3 -3 -2 -2 -1 -1 -1 ------- Run | Scr Mat Min Mat Min Exi Min Mat Gar Mat Gar Fac Gar Fac Gar Fac Gar Fac Gar Fac Gar Res Gar Res Gar Res Gar Acc Gar Acc Slots Evolved 18 | . . . 2 . . . 2 . . . 2 . . . 2 . 2 . 2 . 2 . . . 2 . 2 . . Power 1 | . . . . . . . . . . . . . . . . . . . . . . . . . 1 . . . . Propulsion 3 | . . . . . . . 1 . . . . . . . . . . . 1 . . . . . . . 1 . . Utility 12 | . . . 2 . . . . . . . 2 . . . 2 . 2 . 1 . 1 . . . 1 . 1 . . Weapon 2 | . . . . . . . 1 . . . . . . . . . . . . . 1 . . . . . . . . Parts Attached 623 | 6 2 5 15 3 1 . 2 20 20 23 13 39 9 14 9 33 15 55 17 39 22 31 6 40 13 39 18 40 74 Power 46 | 1 . 1 3 . . . . 2 3 . 1 . 1 3 . 3 1 3 . 2 1 1 1 3 2 3 1 5 5 Engine 15 | 1 . 1 3 . . . . 2 3 . 1 . 1 1 . 2 . . . . . . . . . . . . . Core 6 | . . . . . . . . . . . . . . 2 . 1 . 1 . 1 . 1 . . . . . . . Reactor 25 | . . . . . . . . . . . . . . . . . 1 2 . 1 1 . 1 3 2 3 1 5 5 Propulsion 112 | 2 . 1 4 1 . . 1 1 5 6 2 5 1 . 1 1 6 10 4 6 1 4 . 9 . 10 5 12 14 Treads 3 | . . . . . . . . . . 1 . . . . . . . . . . . . . 1 . 1 . . . Leg 34 | . . . . . . . . . . . . . . . . . . 4 . . . . . 1 . 5 . 10 14 Wheel 73 | 2 . 1 4 1 . . 1 1 5 5 2 5 1 . 1 1 6 6 4 6 1 4 . 6 . 3 5 2 . Hover 1 | . . . . . . . . . . . . . . . . . . . . . . . . 1 . . . . . Flight 1 | . . . . . . . . . . . . . . . . . . . . . . . . . . 1 . . . Utility 176 | 1 2 . 1 1 1 . . 4 2 3 6 9 1 5 3 11 4 18 4 11 6 10 . 20 5 13 6 12 17 Device 61 | . . . . 1 . . . 1 1 . 2 1 . . . 3 3 5 3 2 3 4 . 6 3 8 6 6 3 Storage 35 | 1 1 . . . 1 . . . 1 2 1 2 . . . 3 . 3 . 3 2 2 . 7 2 . . . 4 Processor 6 | . . . . . . . . . . . 3 . . . . . . . . . 1 1 . . . . . . 1 Hackware 44 | . . . . . . . . . . . . 3 . 3 3 1 1 5 . 5 . 3 . 7 . 5 . 5 3 Protection 30 | . 1 . 1 . . . . 3 . 1 . 3 1 2 . 4 . 5 1 1 . . . . . . . 1 6 Artifact . | . . . . . . . . . . . . . . . . . . . . . . . . . . . . . . Weapon 289 | 2 . 3 7 1 . . 1 13 10 14 4 25 6 6 5 18 4 24 9 20 14 16 5 8 6 13 6 11 38 Energy Gun 68 | . . . 1 . . . . 4 1 . 1 . 3 1 2 8 1 8 2 5 4 6 2 3 1 4 3 3 5 Energy Cannon 30 | . . 1 . 1 . . . . 1 3 1 . . . . 1 . 2 . 1 1 3 . . . 3 2 3 7 Ballistic Gun 115 | 2 . 2 6 . . . 1 7 7 7 1 16 3 3 1 7 1 5 2 10 3 4 2 3 1 4 . 3 14 Ballistic Cannon . | . . . . . . . . . . . . . . . . . . . . . . . . . . . . . . Launcher 10 | . . . . . . . . 2 . 2 . . . . . . . 1 . . . . . . . . . . 5 Special Weapon 47 | . . . . . . . . . . . 1 3 . 2 2 2 1 7 4 2 4 3 1 2 3 2 1 1 6 Impact Weapon 2 | . . . . . . . . . . . . . . . . . . . . . . . . . . . . 1 1 Slashing Weapon 16 | . . . . . . . . . 1 2 . 6 . . . . 1 1 1 2 2 . . . . . . . . Piercing Weapon . | . . . . . . . . . . . . . . . . . . . . . . . . . . . . . . Special Melee Weapon 1 | . . . . . . . . . . . . . . . . . . . . . . . . . 1 . . . . Unidentified Prototypes 22 | . . . 3 . . . . . 2 . 1 . 1 . 1 . . 1 2 . 5 . 1 . 2 . . 1 2 Parts Lost 136 | . . 5 1 1 . . . 7 . 5 . 2 . 1 2 5 4 12 1 10 . 11 . 8 . 7 2 12 40 Power 10 | . . 1 . . . . . . . . . . . 1 . . . 1 . . . . . 1 . . . 2 4 Propulsion 50 | . . 2 . 1 . . . 3 . 2 . 2 . . 1 2 3 4 1 5 . 4 . 3 . 3 1 5 8 Utility 23 | . . . . . . . . 3 . . . . . . 1 . . 1 . 3 . 1 . 1 . . . 2 11 Weapon 53 | . . 2 1 . . . . 1 . 3 . . . . . 3 1 6 . 2 . 6 . 3 . 4 1 3 17 Highest Loss Streak 27 | . . 4 1 1 . . . 2 . 1 . 1 . 1 1 3 2 5 1 3 . 4 . 2 . 2 1 6 27 Average Slot Usage (%) 94 | . 88 89 84 95 100 100 96 87 97 97 92 95 92 87 82 88 90 94 97 93 96 95 99 98 99 96 98 96 95 Engine 2 | . 14 11 11 11 11 11 9 9 9 9 7 7 7 2 6 3 . . . . . . . . . . . . . Reactor 3 | . . . . . . . . . . . . . . . . . 4 4 5 2 2 . 2 3 7 8 7 7 7 Leg 2 | . . . . . . . . . . . . . . . . . . 2 . . . . . 2 . 2 . 14 18 Wheel 14 | . 28 23 20 18 22 22 24 16 25 21 16 20 15 15 10 10 11 12 20 16 16 16 19 11 17 10 17 3 . Device 5 | . . . . 10 11 11 9 9 8 . 6 . . . . . 3 5 6 4 7 10 4 3 4 8 12 11 8 Storage 27 | . 14 14 11 11 14 22 18 18 18 29 30 35 38 38 33 33 29 29 31 32 28 28 28 28 29 26 24 24 24 Hackware 12 | . . . . . . . . . . . . . . 1 4 12 16 15 15 15 19 16 23 22 21 21 20 19 18 Protection 3 | . 3 14 20 22 18 11 9 7 9 6 . 2 7 5 6 5 4 4 2 2 . . . . . . . . 4 Energy Gun 3 | . . . . . . . . 7 . . 5 . 1 2 1 4 3 6 2 2 4 3 1 8 8 3 5 4 2 Energy Cannon 1 | . . . . 11 11 11 9 . 2 4 . . . . . . . . . . . . 3 . . . 2 5 4 Ballistic Gun 10 | . 28 25 21 11 11 11 18 19 24 20 15 20 21 15 12 12 11 6 7 8 8 8 8 3 4 8 4 2 2 Special Weapon 2 | . . . . . . . . . . . . 1 . 2 4 1 . 1 2 3 3 3 3 3 3 3 4 3 3 Naked Turns . | . . . . . . . . . . . . . . . . . . . . . . . . . . . . . . Heaviest Build 226 | 11 24 24 34 35 50 50 53 58 62 77 85 105 106 106 106 117 122 132 135 139 151 151 157 155 175 182 176 187 226 Greatest Support 136 | 32 32 32 26 26 26 26 36 36 42 40 40 40 40 40 40 40 36 50 48 48 52 52 48 48 48 109 72 128 136 Greatest Overweight (x) 13 | 1 . 1 3 3 1 1 2 5 3 4 2 4 2 2 3 10 11 11 3 5 3 11 3 12 3 13 6 13 3 Average Overweight (x) 2 | . . . 1 1 1 1 1 2 1 1 1 2 2 2 2 4 6 3 2 2 2 2 2 5 3 5 2 1 1 Largest Inventory Capacity 46 | 6 12 10 10 10 16 16 16 16 20 28 28 34 34 34 34 34 34 40 40 46 42 42 42 42 42 42 42 42 46 Average Capacity 34 | 5 8 10 10 10 12 16 16 16 16 22 28 32 34 34 34 34 34 34 40 40 40 42 42 42 42 42 42 42 45 Most Carried 46 | 4 4 6 10 10 11 11 14 16 16 28 28 34 34 34 34 34 34 40 40 40 41 42 42 42 42 42 42 42 46 Average Carried 33 | 2 1 4 8 9 10 11 11 15 15 20 27 31 33 33 32 33 33 33 39 39 39 40 41 41 41 41 41 40 43 Final Capacity 42 | 6 10 10 10 10 16 16 16 16 20 28 28 34 34 34 34 34 34 40 40 40 42 42 42 42 42 42 42 42 34 Final Carried 42 | 1 3 6 10 10 11 11 14 16 16 28 28 34 34 34 34 34 34 40 40 40 41 41 42 42 42 42 40 42 30 Class Distribution -------------------- 63% | Botlord-Mutant 6% | Scavenger-Skirmisher 6% | Botlord-Skirmisher 5% | Bothacker-Skirmisher 5% | Bothacker-Mutant 3% | Scavenger-Mutant 3% | Mutant Dominant Class ---------------- Mutant | -10/Materials Mutant | -10/Mines Scavenger-Mutant | -9/Materials Scavenger-Mutant | -9/Mines Scavenger-Mutant | -9/Exiles Scavenger-Mutant | -8/Mines Scavenger-Skirmisher | -8/Materials Skirmisher | -8/Garrison Scavenger-Skirmisher | -8/Materials Scavenger-Skirmisher | -8/Garrison Hauler-Skirmisher | -7/Factory Bothacker-Skirmisher | -7/Garrison Bothacker-Skirmisher | -7/Factory Bothacker-Mutant | -7/Garrison Botlord-Mutant | -6/Factory Botlord-Mutant | -6/Garrison Botlord-Mutant | -5/Factory Botlord-Mutant | -5/Garrison Botlord-Mutant | -4/Factory Botlord-Mutant | -4/Garrison Botlord-Mutant | -3/Research Botlord-Mutant | -3/Garrison Botlord-Mutant | -3/Research Botlord-Mutant | -3/Garrison Botlord-Mutant | -2/Research Botlord-Mutant | -2/Garrison Botlord-Mutant | -1/Access Botlord-Mutant | -1/Garrison Botlord-Mutant | -1/Access Resources | -11 -10 -10 -9 -9 -9 -8 -8 -8 -8 -8 -7 -7 -7 -7 -6 -6 -5 -5 -4 -4 -3 -3 -3 -3 -2 -2 -1 -1 -1 ----------- Run | Scr Mat Min Mat Min Exi Min Mat Gar Mat Gar Fac Gar Fac Gar Fac Gar Fac Gar Fac Gar Res Gar Res Gar Res Gar Acc Gar Acc Matter Collected 13955 | 240 54 79 266 43 . 13 98 579 641 456 185 1269 212 541 172 614 358 832 308 1135 382 777 227 923 172 756 370 881 1372 Remotely . | . . . . . . . . . . . . . . . . . . . . . . . . . . . . . . Salvage Created 25976 | . 84 209 489 114 . 24 130 1150 1173 872 210 1585 74 779 171 1368 680 1677 445 1434 360 1296 313 1829 483 1518 646 1286 5577 Parts 1011 | . 4 7 37 5 . 1 10 66 69 38 18 61 5 31 9 58 52 54 22 42 34 51 11 58 16 51 23 34 144 Haulers Intercepted 15 | . 1 . 5 . . . . . 4 . 1 . . . . . . . . . . . . . 2 . 2 . . Recyclers Shooed 9 | . . 1 1 1 . . . . . . . . . . 2 . 1 . . . . . 1 . . . 1 . 1 Parts Field Recycled . | . . . . . . . . . . . . . . . . . . . . . . . . . . . . . . Retrieved Matter . | . . . . . . . . . . . . . . . . . . . . . . . . . . . . . . Parts Self-Destructed . | . . . . . . . . . . . . . . . . . . . . . . . . . . . . . . Prevented . | . . . . . . . . . . . . . . . . . . . . . . . . . . . . . . Kills | -11 -10 -10 -9 -9 -9 -8 -8 -8 -8 -8 -7 -7 -7 -7 -6 -6 -5 -5 -4 -4 -3 -3 -3 -3 -2 -2 -1 -1 -1 ------- Run | Scr Mat Min Mat Min Exi Min Mat Gar Mat Gar Fac Gar Fac Gar Fac Gar Fac Gar Fac Gar Res Gar Res Gar Res Gar Acc Gar Acc Combat Hostiles Destroyed 321 | . 1 5 7 1 . . 2 30 16 18 3 25 . 16 3 19 6 19 5 11 5 16 4 12 3 16 2 16 60 Melee 1 | . . . . . . . . . . . . . . . . . . . . . . . . . . . . . 1 Guns 200 | . 1 4 7 . . . 1 23 14 8 3 25 . 16 3 13 6 9 5 9 5 14 2 6 1 10 1 7 7 Cannons 21 | . . 1 . 1 . . 1 . 2 5 . . . . . . . . . . . . 2 . . 1 . 2 6 AOE 28 | . . . . . . . . 7 . 5 . . . . . 2 . 2 . . . . . . . . . 1 11 Classes Destroyed 24 | . 2 3 3 . . 1 1 1 1 3 1 . . . . 2 . . . . . . . . . . . . 6 Worker 14 | . . . 2 . . . . . 1 . . . 2 . 1 . 3 . . . . . . . . . . . 5 Builder 13 | . . . 1 . . . . . 2 . . . . . . . 2 . 2 . 1 . . . . . 1 . 4 Tunneler 1 | . . . . . . 1 . . . . . . . . . . . . . . . . . . . . . . . Hauler 15 | . 1 . 5 . . . . . 4 . 1 . . . . . . . . . . . . . 2 . 2 . . Recycler 10 | . . 1 . 1 . . 1 . 1 . . . . . . . 1 . 1 . . . . . . . 1 . 3 Carrier 2 | . . . . . . . . . . . . . . . . . . . . . . . . . . . . . 2 Mechanic 4 | . . . . . . . . . . . . . . . . . . . . . . . . . . . . . 4 Operator 2 | . . . . . . . 1 . 1 . . . . . . . . . . . . . . . . . . . . Watcher 9 | . . . . . . . . . 2 . . . 1 . . . 3 . . . . . . . . . 2 . 1 Swarmer 61 | . . 2 3 . . . 1 9 2 10 . 7 . 2 . 3 1 5 . 2 . 6 . 2 . 1 . 5 . Saboteur 2 | . . . . . . . . . . . . . . . . . . . . . . . . . . . . . 2 Grunt 144 | . 1 2 3 1 . . . 14 10 4 1 12 . 13 2 3 2 9 . 7 2 6 1 5 1 10 1 12 22 Brawler 7 | . . . . . . . . . . . . . . . . 1 . 1 . . . . 1 1 . . . . 3 Duelist 13 | . . . . . . . . 4 . . . 4 . . . 2 . 1 . . . . . . . . . . 2 Protector 4 | . . . . . . . . . . 1 . . . . . . . . . . . . . . . . . . 3 Sentry 20 | . . . 1 . . . 1 3 4 1 1 1 . . . 2 . 2 . . . 2 . 1 . 1 . . . Demolisher 4 | . . . . . . . . . . 1 . . . . . . . . . . . . . . . . . . 3 Specialist 1 | . . . . . . . . . . . . . . . . . . . . . . . . . . . . . 1 Hunter 23 | . . . . . . . . . . 1 . 1 . 1 . 6 . . . 4 . . . 2 2 2 . . 4 Programmer 37 | . . . . . . . . . . . 1 . . . 1 1 3 . 5 . 3 1 2 1 . 2 1 . 16 Behemoth 5 | . . . . . . . . . . . . . . . . 1 . 1 . 1 . 1 . . . 1 . . . Striker 2 | . . . . . . . . . . . . . . . . . . . . . . . . . . . . . 2 Executioner 4 | . . . . . . . . . . . . . . . . . . . . . . . . . . . . . 4 Assembled 1 | . . 1 . . . . . . . . . . . . . . . . . . . . . . . . . . . Best Kill Streak 41 | . 1 3 3 2 . 1 2 8 5 8 2 7 2 3 2 3 3 5 4 2 2 3 2 2 3 2 2 2 41 Combat Bots Only 33 | . 1 2 3 1 . . 1 8 4 8 1 7 . 3 2 3 2 5 2 2 2 3 2 2 3 2 1 2 33 Max Kills in Single Turn 7 | . 1 1 1 1 . 1 1 3 2 2 1 1 2 2 1 2 1 1 2 2 1 1 1 1 1 2 2 1 7 Gunslinging 1 | . . . . . . . . 1 . . . . . . . . . . . . . . . . . . . . . Exploded 3 | . . . . . . . . 3 . 2 . . . . . 1 . 1 . . . . . . . . . 1 2 Melee 1 | . . . . . . . . . . . . . . . . . . . . . . . . . . . . . 1 Uniques/NPCs Destroyed . | . . . . . . . . . . . . . . . . . . . . . . . . . . . . . . Combat | -11 -10 -10 -9 -9 -9 -8 -8 -8 -8 -8 -7 -7 -7 -7 -6 -6 -5 -5 -4 -4 -3 -3 -3 -3 -2 -2 -1 -1 -1 -------- Run | Scr Mat Min Mat Min Exi Min Mat Gar Mat Gar Fac Gar Fac Gar Fac Gar Fac Gar Fac Gar Res Gar Res Gar Res Gar Acc Gar Acc Damage Taken 27305 | . 12 634 221 33 . . 186 1081 544 1040 294 1408 313 581 155 1331 717 1723 588 1500 273 1442 110 1406 176 983 299 1702 8553 Core 3934 | . 12 147 36 . . . 59 252 52 173 56 301 17 116 . 257 101 167 . 134 47 105 49 174 . 65 . 129 1485 Absorbed by Shields 661 | . . . . . . . . 4 . 23 . 29 . 41 . 8 . . . . . . . . . 12 . . 544 Core Remaining (%) 65 | 100 . 36 . . . 91 . . . 2 . . . 30 . 69 . 73 . 88 . . . 71 . 95 . . . Volleys Fired 1673 | . 7 24 52 6 . 1 13 85 49 63 11 87 9 78 18 104 49 145 24 127 30 123 18 112 16 96 35 132 159 Largest 3 | . 2 2 2 2 . 2 3 3 3 3 3 3 3 3 2 3 3 2 3 2 3 3 3 3 3 3 3 3 3 Hottest 290 | . 40 80 46 83 . 83 106 115 111 111 98 83 84 111 56 250 111 250 147 250 151 250 185 150 183 250 155 250 290 Shots Fired 2806 | . 14 46 104 12 . 2 39 184 145 138 28 212 22 122 28 157 79 155 53 170 49 169 31 197 28 157 56 192 217 Gun 2247 | . 14 44 104 6 . 1 26 175 126 91 28 202 22 108 20 148 76 123 52 143 35 139 19 176 24 132 37 95 81 Cannon 269 | . . 2 . 6 . 1 13 6 19 44 . . . . . 2 . 11 . 3 6 10 5 . . 7 4 63 67 Launcher 20 | . . . . . . . . 3 . 3 . . . . . . . 1 . . . . . . . . . . 13 Special 270 | . . . . . . . . . . . . 10 . 14 8 7 3 20 1 24 8 20 7 21 4 18 15 34 56 Kinetic 1438 | . 14 44 104 6 . 1 26 131 126 91 19 197 22 84 20 58 47 20 40 87 20 68 19 29 1 49 17 28 70 Thermal 336 | . . 2 . 6 . 1 13 29 19 44 . . . . . 2 . 18 12 13 18 10 5 . . 10 4 63 67 Explosive 20 | . . . . . . . . 3 . 3 . . . . . . . 1 . . . . . . . . . . 13 Electromagnetic 742 | . . . . . . . . 21 . . 9 5 . 24 . 90 29 96 . 46 3 71 . 147 23 80 20 67 11 Robot Hit Streak 25 | . 5 9 11 5 . 1 4 25 14 19 11 8 8 16 8 17 8 18 10 13 8 11 9 24 8 12 8 12 11 Robot Miss Streak 9 | . 1 5 5 1 . 1 2 2 6 3 2 9 7 2 3 5 2 7 2 4 3 4 2 2 3 3 3 4 5 Penetration Max 2 | . . . . . . . . . 1 . . . . 1 1 1 . 1 1 1 1 . . . . 1 . 1 2 Secondary Targets 17 | . . . 1 . . . . 5 . . . 4 . . . . 1 2 . 1 . 1 . 1 . . . 1 . Max Gunslinging Chain 1 | . . . 1 . . . . 1 . . . 1 . . . . 1 1 . 1 . 1 . 1 . . . 1 . Shots Hit Robots 1719 | . 8 29 69 9 . 1 20 114 96 90 18 159 20 76 18 92 51 99 35 109 25 91 21 107 18 83 38 94 129 Core Hits 847 | . 4 13 28 3 . 1 5 59 46 43 10 92 15 30 7 38 22 30 13 35 10 35 8 30 6 32 9 32 191 Critical Hits 52 | . . . 2 . . . . . 2 3 . 3 . 1 . . 2 2 6 3 . 4 1 . . 2 2 1 18 Critical Kills 20 | . . . 1 . . . . . 1 . . . . . . . . . 2 2 . 1 1 . . 1 2 . 9 Critical Parts Destroyed 31 | . . . 1 . . . . . 1 3 . 3 . 1 . . 2 1 4 1 . 3 . . . 1 . 1 9 Melee Attacks 84 | . . . . . . . . . 1 19 . 33 . . . . 2 4 7 13 4 . . . . . . 1 . Impact 1 | . . . . . . . . . . . . . . . . . . . . . . . . . . . . 1 . Slashing 83 | . . . . . . . . . 1 19 . 33 . . . . 2 4 7 13 4 . . . . . . . . Piercing . | . . . . . . . . . . . . . . . . . . . . . . . . . . . . . . Sneak Attacks . | . . . . . . . . . . . . . . . . . . . . . . . . . . . . . . Combat Hostiles . | . . . . . . . . . . . . . . . . . . . . . . . . . . . . . . Follow-up Attacks . | . . . . . . . . . . . . . . . . . . . . . . . . . . . . . . Damage Inflicted 46403 | . 85 256 618 155 . 18 247 2247 1815 2760 258 3862 334 1433 356 2113 1385 2849 1072 2712 601 2162 551 2562 508 2390 883 2063 10108 Guns 27978 | . 85 239 618 70 . 18 89 1624 1538 530 258 1740 334 1433 356 1809 1311 2017 1072 1580 601 1851 350 2562 508 1920 838 1521 1106 Cannons 4834 | . . 17 . 85 . . 158 105 277 609 . . . . . 20 . 343 . 30 . 141 201 . . 324 45 412 2067 Explosions 9092 | . . . . . . . . 518 . 404 . . . . . 284 74 213 . 218 . 170 . . . 146 . 130 6935 Melee 4499 | . . . . . . . . . . 1217 . 2122 . . . . . 276 . 884 . . . . . . . . . Ramming . | . . . . . . . . . . . . . . . . . . . . . . . . . . . . . . Kinetic 16006 | . 85 239 618 70 . 18 89 1189 1538 530 145 1689 334 1082 356 533 775 329 869 959 295 946 350 455 25 881 319 341 947 Thermal 10758 | . . 17 . 85 . . 158 329 277 609 . . . . . 304 74 635 203 358 219 311 201 . . 547 45 542 5844 Explosive 4042 | . . . . . . . . 464 . 404 . . . . . . . 16 . . . . . . . . . . 3158 Electromagnetic 11098 | . . . . . . . . 265 . . 113 51 . 351 . 1276 536 1593 . 511 87 905 . 2107 483 962 519 1180 159 Impact . | . . . . . . . . . . . . . . . . . . . . . . . . . . . . . . Slashing 4499 | . . . . . . . . . . 1217 . 2122 . . . . . 276 . 884 . . . . . . . . . Piercing . | . . . . . . . . . . . . . . . . . . . . . . . . . . . . . . Highest Corruption 17 | . . . . . . . . . 1 1 . . 1 1 . 1 4 4 9 9 1 1 6 8 . . . . 17 Average Corruption 3 | . . . . . . . . . 1 1 . . 1 1 . 1 1 4 6 9 1 1 2 7 . . . . 5 Corruption Purged . | . . . . . . . . . . . . . . . . . . . . . . . . . . . . . . Effects 352 | . . . . . . . . . . 10 . . 5 5 . 6 4 68 23 99 . 8 6 95 . . . . 23 Message Errors 73 | . . . . . . . . . . 4 . . 3 3 . 3 2 10 1 20 . 4 . 21 . . . . 2 Matter Fused 80 | . . . . . . . . . . . . . . . . . 1 19 5 20 . . 2 30 . . . . 3 Heat Flow Errors 29 | . . . . . . . . . . . . . . . . . . 4 8 5 . . 1 7 . . . . 4 Energy Discharges 33 | . . . . . . . . . . 1 . . . 1 . 1 . 11 4 7 . 1 1 4 . . . . 2 Parts Rejected 5 | . . . . . . . . . . . . . . . . . . 1 . 2 . . . 1 . . . . 1 Data Loss (minor) 43 | . . . . . . . . . . 2 . . 1 . . 1 1 8 1 9 . 2 2 12 . . . . 4 Data Loss (major) 13 | . . . . . . . . . . . . . . . . . . . 2 5 . . . 6 . . . . . Misfires 7 | . . . . . . . . . . . . . . . . . . . . 3 . . . 4 . . . . . Targeting Errors 60 | . . . . . . . . . . 3 . . . . . 1 . 13 1 26 . . . 10 . . . . 6 Weapon Failures 9 | . . . . . . . . . . . . . 1 1 . . . 2 1 2 . 1 . . . . . . 1 Overload Shots . | . . . . . . . . . . . . . . . . . . . . . . . . . . . . . . Overflow Damage 494 | . . . . . . . 8 . . 13 . 187 . . . . 13 54 . 12 . . 2 . . . 15 15 175 Projectiles 140 | . . . . . . . 8 . . 13 . . . . . . . 29 . . . . 2 . . . 15 15 58 Explosions 153 | . . . . . . . . . . . . . . . . . 13 23 . . . . . . . . . . 117 Melee 201 | . . . . . . . . . . . . 187 . . . . . 2 . 12 . . . . . . . . . Knockbacks . | . . . . . . . . . . . . . . . . . . . . . . . . . . . . . . Impact . | . . . . . . . . . . . . . . . . . . . . . . . . . . . . . . Kinetic . | . . . . . . . . . . . . . . . . . . . . . . . . . . . . . . Secondary . | . . . . . . . . . . . . . . . . . . . . . . . . . . . . . . Self-Inflicted Damage 131 | . . . . . . . . . . . . . . . . 9 32 47 . . . 13 . . . 13 . . 17 Shots 7 | . . . . . . . . . . . . . . . . 1 1 1 . . . 1 . . . 2 . . 1 Rammed . | . . . . . . . . . . . . . . . . . . . . . . . . . . . . . . Targets Rammed . | . . . . . . . . . . . . . . . . . . . . . . . . . . . . . . Kicked . | . . . . . . . . . . . . . . . . . . . . . . . . . . . . . . Crushed . | . . . . . . . . . . . . . . . . . . . . . . . . . . . . . . Highest Temperature 451 | . 6 35 451 . . . 15 38 4 308 130 147 66 118 10 336 129 240 236 441 18 219 94 382 15 391 22 194 382 Average Temperature 63 | . 6 13 100 . . . 9 12 2 90 68 34 22 26 6 63 26 66 76 127 18 84 62 119 6 45 22 73 101 Received Heat Transfer 3653 | . 6 108 93 18 . . 27 348 270 153 81 378 51 261 36 102 99 483 . 156 42 114 . 123 18 153 27 207 299 Effects 13 | . . . 4 . . . . . . . . . . . . 2 . . . 1 . . . 1 . 1 . . 4 Shutdowns 3 | . . . 1 . . . . . . . . . . . . . . . . 1 . . . . . 1 . . . Energy Bleed 2 | . . . 1 . . . . . . . . . . . . 1 . . . . . . . . . . . . . Interference 3 | . . . . . . . . . . . . . . . . . . . . . . . . . . . . . 3 Matter Decay 2 | . . . . . . . . . . . . . . . . . . . . . . . . 1 . . . . 1 Short Circuit 1 | . . . 1 . . . . . . . . . . . . . . . . . . . . . . . . . . Damage (minor) 1 | . . . . . . . . . . . . . . . . 1 . . . . . . . . . . . . . Damage (major) 1 | . . . 1 . . . . . . . . . . . . . . . . . . . . . . . . . . Siege Activations . | . . . . . . . . . . . . . . . . . . . . . . . . . . . . . . Robots Corrupted 52 | . . . . . . . . . . . . . . . . 6 . 10 . 3 . 4 . 13 3 4 3 6 . Combat Hostiles 31 | . . . . . . . . . . . . . . . . 3 . 7 . 1 . 1 . 6 2 4 1 6 . Parts Fried 89 | . . . . . . . . 2 . . . . . 2 . 16 2 11 . 2 . 4 . 20 8 9 3 10 . Impact Corruptions . | . . . . . . . . . . . . . . . . . . . . . . . . . . . . . . Robots Melted 45 | . . . . . . . . . . . . . . . . 1 . 2 . 1 . 1 . . . 1 . . 39 Combat Hostiles 40 | . . . . . . . . . . . . . . . . 1 . 1 . 1 . 1 . . . 1 . . 35 Parts Melted 192 | . . . . . . . . 1 1 . . . . . . 3 1 3 1 7 . 3 1 . . 15 . 1 155 Heat Transferred 35085 | . . 37 . 185 . . 333 605 444 916 . . . . . 730 100 1178 259 1150 296 814 148 . . 1219 37 935 25699 Parts Sabotaged 6 | . . . . . . . . . . . . . . . . . . . . . . . . . . . . . 6 Parts Stolen . | . . . . . . . . . . . . . . . . . . . . . . . . . . . . . . Parts Stripped . | . . . . . . . . . . . . . . . . . . . . . . . . . . . . . . Power Chain Reactions 10 | . . . . . . . . 2 . . . . . . . 3 1 1 . 1 . 1 . . . . . . 1 Missiles Intercepted 2 | . . . . . . . . . . . . . . . . . . . . . . . . . . . . . 2 Alert | -11 -10 -10 -9 -9 -9 -8 -8 -8 -8 -8 -7 -7 -7 -7 -6 -6 -5 -5 -4 -4 -3 -3 -3 -3 -2 -2 -1 -1 -1 ------- Run | Scr Mat Min Mat Min Exi Min Mat Gar Mat Gar Fac Gar Fac Gar Fac Gar Fac Gar Fac Gar Res Gar Res Gar Res Gar Acc Gar Acc Peak Influence 4845 | . 46 97 265 56 . 5 197 977 563 702 446 920 610 866 454 654 543 961 566 684 415 814 566 795 447 815 665 1322 4845 Initial 792 | . . 17 33 37 . . 1 42 475 150 368 193 483 265 454 3 343 324 504 172 384 229 457 149 447 141 488 492 792 Average 607 | . 25 72 157 46 . 3 104 632 336 461 346 615 493 640 142 375 401 647 387 438 343 539 267 552 313 594 590 1039 2500 Maximum Alert Level 5 | . . . 1 . . . . 3 2 3 2 3 2 3 2 2 2 3 2 2 2 3 2 3 2 3 2 4 5 Low Security (%) 12 | 100 100 100 77 100 . 100 100 9 33 22 . 10 . . 72 24 . . . 6 . . 43 5 29 5 . . . Level 1 20 | . . . 22 . . . . 13 21 17 70 14 5 7 . 23 65 14 47 36 71 21 27 22 24 18 . . . Level 2 36 | . . . . . . . . 29 44 33 29 22 94 53 26 51 34 44 52 57 28 49 28 40 46 23 100 13 . Level 3 22 | . . . . . . . . 47 . 26 . 52 . 39 . . . 40 . . . 28 . 31 . 52 . 33 12 Level 4 5 | . . . . . . . . . . . . . . . . . . . . . . . . . . . . 52 27 Level 5 . | . . . . . . . . . . . . . . . . . . . . . . . . . . . . . 9 High Security 1 | . . . . . . . . . . . . . . . . . . . . . . . . . . . . . 50 Max Security . | . . . . . . . . . . . . . . . . . . . . . . . . . . . . . . Squads Dispatched 62 | . 1 . 1 . . . 2 . 2 . 1 . 2 . 2 . 4 . 4 . 2 . 1 . 1 . 7 . 32 Investigation 6 | . . . . . . . 1 . 1 . . . 1 . . . . . 2 . 1 . . . . . . . . Extermination 11 | . . . . . . . . . . . 1 . 1 . 1 . 2 . 2 . 1 . 1 . . . 1 . 1 Reinforcement 11 | . 1 . 1 . . . 1 . 1 . . . . . 1 . 2 . . . . . . . 1 . 2 . 1 Assault 25 | . . . . . . . . . . . . . . . . . . . . . . . . . . . 1 . 24 Garrison 9 | . . . . . . . . . . . . . . . . . . . . . . . . . . . 3 . 6 Intercept . | . . . . . . . . . . . . . . . . . . . . . . . . . . . . . . Construction Impeded 3 | . . . . . . . . . . . . . . . . . 1 . . . . . . . . . 1 . 1 Haulers Reinforced 2 | . . . . . . . . . . . . . . . . . 1 . . . . . . . . . 1 . . Stealth | -11 -10 -10 -9 -9 -9 -8 -8 -8 -8 -8 -7 -7 -7 -7 -6 -6 -5 -5 -4 -4 -3 -3 -3 -3 -2 -2 -1 -1 -1 --------- Run | Scr Mat Min Mat Min Exi Min Mat Gar Mat Gar Fac Gar Fac Gar Fac Gar Fac Gar Fac Gar Res Gar Res Gar Res Gar Acc Gar Acc Distress Signals 15 | . . 2 1 . . . 1 . 7 . . . . . . . 1 . . . . . . . . . . . 3 Communications Jammed 249 | . . . . . . . . . . . . . . . . . . . . . . . 1 . . . 21 . 227 Distress Signals 249 | . . . . . . . . . . . . . . . . . . . . . . . 1 . . . 21 . 227 Times Spotted 701 | . 2 17 12 3 . . 9 34 31 34 3 32 10 23 7 24 18 45 10 32 10 35 14 30 7 26 16 45 172 Peak Tracking Total 21 | . 1 10 4 3 . . 4 5 5 7 1 6 4 6 2 6 4 5 2 5 3 7 3 6 2 3 3 6 21 Tactical Retreats 52 | . . 3 . . . . . 4 1 11 . 1 . 2 . 4 1 9 . 2 . 3 1 3 . 2 . 2 3 Traps | -11 -10 -10 -9 -9 -9 -8 -8 -8 -8 -8 -7 -7 -7 -7 -6 -6 -5 -5 -4 -4 -3 -3 -3 -3 -2 -2 -1 -1 -1 ------- Run | Scr Mat Min Mat Min Exi Min Mat Gar Mat Gar Fac Gar Fac Gar Fac Gar Fac Gar Fac Gar Res Gar Res Gar Res Gar Acc Gar Acc Traps Triggered 105 | . . . 1 . . . 1 7 3 8 . 7 2 8 . 6 . 10 5 10 1 6 1 8 . 10 1 7 3 Indirectly . | . . . . . . . . . . . . . . . . . . . . . . . . . . . . . . Trap Hack Attempts . | . . . . . . . . . . . . . . . . . . . . . . . . . . . . . . Triggered . | . . . . . . . . . . . . . . . . . . . . . . . . . . . . . . Disarmed . | . . . . . . . . . . . . . . . . . . . . . . . . . . . . . . Reprogrammed . | . . . . . . . . . . . . . . . . . . . . . . . . . . . . . . Reused . | . . . . . . . . . . . . . . . . . . . . . . . . . . . . . . Traps Extracted . | . . . . . . . . . . . . . . . . . . . . . . . . . . . . . . Installed . | . . . . . . . . . . . . . . . . . . . . . . . . . . . . . . Triggered . | . . . . . . . . . . . . . . . . . . . . . . . . . . . . . . Machines | -11 -10 -10 -9 -9 -9 -8 -8 -8 -8 -8 -7 -7 -7 -7 -6 -6 -5 -5 -4 -4 -3 -3 -3 -3 -2 -2 -1 -1 -1 ---------- Run | Scr Mat Min Mat Min Exi Min Mat Gar Mat Gar Fac Gar Fac Gar Fac Gar Fac Gar Fac Gar Res Gar Res Gar Res Gar Acc Gar Acc Machines Disabled 63 | . . . 1 . . . 1 3 2 3 . 4 . 4 . 5 6 5 1 4 . 5 . 5 . 6 1 5 2 Max in Single Turn 3 | . . . 1 . . . . 1 1 1 . 1 . 1 . 1 3 1 1 1 . 1 . 1 . 1 . 1 1 Garrison Relay 42 | . . . . . . . . 4 . 3 . 4 . 4 . 4 . 4 . 4 . 4 . 3 . 4 . 4 . Machines Sabotaged . | . . . . . . . . . . . . . . . . . . . . . . . . . . . . . . Garrisons Compromised . | . . . . . . . . . . . . . . . . . . . . . . . . . . . . . . Overloaded Fab Kills . | . . . . . . . . . . . . . . . . . . . . . . . . . . . . . . Fab Network Shutdowns . | . . . . . . . . . . . . . . . . . . . . . . . . . . . . . . Hacking | -11 -10 -10 -9 -9 -9 -8 -8 -8 -8 -8 -7 -7 -7 -7 -6 -6 -5 -5 -4 -4 -3 -3 -3 -3 -2 -2 -1 -1 -1 --------- Run | Scr Mat Min Mat Min Exi Min Mat Gar Mat Gar Fac Gar Fac Gar Fac Gar Fac Gar Fac Gar Res Gar Res Gar Res Gar Acc Gar Acc Machines Accessed 49 | . 1 . 2 . 1 . 4 . 11 . 2 . 4 . 3 . 5 . 4 . 2 . 3 . 4 . 3 . . Terminals 28 | . 1 . 1 . . . 3 . 8 . 1 . 2 . 2 . 2 . 2 . 1 . 2 . 2 . 1 . . Fabricators 1 | . . . . . . . . . . . . . . . . . 1 . . . . . . . . . . . . Repair Stations 2 | . . . . . . . . . . . . . 1 . . . . . . . . . . . 1 . . . . Recycling Units 2 | . . . . . . . . . 1 . . . . . . . . . 1 . . . . . . . . . . Scanalyzers 4 | . . . 1 . . . . . 1 . . . . . . . 1 . . . . . . . . . 1 . . Garrison Access 11 | . . . . . . . 1 . 1 . 1 . 1 . 1 . 1 . 1 . 1 . 1 . 1 . 1 . . Total Hacks 111 | . 2 . 13 . 1 . 10 . 30 . 7 . 9 . 5 . 8 . 6 . 3 . 5 . 6 . 6 . . Successful 71 | . 2 . 10 . 1 . 8 . 20 . 5 . 5 . 2 . 3 . 5 . 2 . 3 . 2 . 3 . . Failed 40 | . . . 3 . . . 2 . 10 . 2 . 4 . 3 . 5 . 1 . 1 . 2 . 4 . 3 . . Catastrophic 10 | . . . . . . . . . 2 . 1 . 1 . . . 1 . 1 . 1 . 1 . 2 . . . . Database Lockouts . | . . . . . . . . . . . . . . . . . . . . . . . . . . . . . . Manual 21 | . . . . . 1 . 3 . 10 . 3 . . . 1 . . . 1 . . . 1 . . . 1 . . Terminals 64 | . 2 . 5 . . . 8 . 21 . 4 . 5 . 3 . 4 . 3 . 1 . 3 . 3 . 2 . . Fabricators 1 | . . . . . . . . . . . . . . . . . 1 . . . . . . . . . . . . Repair Stations 3 | . . . . . . . . . . . . . 2 . . . . . . . . . . . 1 . . . . Recycling Units 2 | . . . . . . . . . 1 . . . . . . . . . 1 . . . . . . . . . . Scanalyzers 18 | . . . 8 . . . . . 6 . . . . . . . 1 . . . . . . . . . 3 . . Garrison Access 22 | . . . . . . . 2 . 2 . 3 . 2 . 2 . 2 . 2 . 2 . 2 . 2 . 1 . . Terminal Hacks 28 | . 2 . 2 . 1 . 6 . 9 . 2 . 2 . . . . . 2 . . . 1 . . . 1 . . Prototype ID Bank 3 | . . . . . . . . . 1 . . . . . . . . . 1 . . . . . . . 1 . . Level Access Points 2 | . . . 1 . . . . . . . . . 1 . . . . . . . . . . . . . . . . Terminal Index 3 | . . . . . . . 1 . 1 . 1 . . . . . . . . . . . . . . . . . . Garrison Index 1 | . . . . . . . . . . . . . . . . . . . . . . . 1 . . . . . . Unreport Threat 6 | . . . . . . . 2 . 3 . . . . . . . . . 1 . . . . . . . . . . Locate Traps 3 | . 1 . . . . . . . . . 1 . 1 . . . . . . . . . . . . . . . . Dispatch Records 1 | . . . . . . . 1 . . . . . . . . . . . . . . . . . . . . . . Recall Investigation 1 | . . . . . . . 1 . . . . . . . . . . . . . . . . . . . . . . Hauler Manifests 4 | . 1 . 1 . . . 1 . 1 . . . . . . . . . . . . . . . . . . . . Registered Components 1 | . . . . . . . . . 1 . . . . . . . . . . . . . . . . . . . . Zone Layout 2 | . . . . . . . . . 2 . . . . . . . . . . . . . . . . . . . . EX-Prototype ID Bank 1 | . . . . . 1 . . . . . . . . . . . . . . . . . . . . . . . . Fabricator Hacks 1 | . . . . . . . . . . . . . . . . . 1 . . . . . . . . . . . . Build 1 | . . . . . . . . . . . . . . . . . 1 . . . . . . . . . . . . Repair Station Hacks 1 | . . . . . . . . . . . . . 1 . . . . . . . . . . . . . . . . Scan Component 1 | . . . . . . . . . . . . . 1 . . . . . . . . . . . . . . . . Recycling Unit Hacks . | . . . . . . . . . . . . . . . . . . . . . . . . . . . . . . Scanalyzer 15 | . . . 8 . . . . . 6 . . . . . . . . . . . . . . . . . 1 . . Insert Component 7 | . . . 3 . . . . . 3 . . . . . . . . . . . . . . . . . 1 . . Analyze 8 | . . . 5 . . . . . 3 . . . . . . . . . . . . . . . . . . . . Garrison Access Hacks 21 | . . . . . . . 2 . 2 . 2 . 2 . 2 . 2 . 2 . 2 . 2 . 2 . 1 . . Unlock Access 11 | . . . . . . . 1 . 1 . 1 . 1 . 1 . 1 . 1 . 1 . 1 . 1 . 1 . . Coupler Status 10 | . . . . . . . 1 . 1 . 1 . 1 . 1 . 1 . 1 . 1 . 1 . 1 . . . . Unauthorized Hacks 5 | . . . . . . . . . 3 . 1 . . . . . . . 1 . . . . . . . . . . Terminals 3 | . . . . . . . . . 2 . 1 . . . . . . . . . . . . . . . . . . Assimilate 2 | . . . . . . . . . 1 . 1 . . . . . . . . . . . . . . . . . . Operators 1 | . . . . . . . . . 1 . . . . . . . . . . . . . . . . . . . . Fabricators . | . . . . . . . . . . . . . . . . . . . . . . . . . . . . . . Repair Stations . | . . . . . . . . . . . . . . . . . . . . . . . . . . . . . . Recycling Units 2 | . . . . . . . . . 1 . . . . . . . . . 1 . . . . . . . . . . Tunnel 2 | . . . . . . . . . 1 . . . . . . . . . 1 . . . . . . . . . . Scanalyzers . | . . . . . . . . . . . . . . . . . . . . . . . . . . . . . . Garrison Access . | . . . . . . . . . . . . . . . . . . . . . . . . . . . . . . Data Cores Recovered 1 | . . . . . . . 1 . . . . . . . . . . . . . . . . . . . . . . Used 1 | . . . . . . . 1 . . . . . . . . . . . . . . . . . . . . . . Hacking Detections 35 | . . . 1 . . . 3 . 7 . 2 . 2 . 3 . 3 . 3 . 2 . 3 . 4 . 2 . . Full Trace Events 1 | . . . . . . . . . . . . . 1 . . . . . . . . . . . . . . . . Feedback Events . | . . . . . . . . . . . . . . . . . . . . . . . . . . . . . . Feedback Blocked . | . . . . . . . . . . . . . . . . . . . . . . . . . . . . . . Robot Schematics Acquired . | . . . . . . . . . . . . . . . . . . . . . . . . . . . . . . Robots Built . | . . . . . . . . . . . . . . . . . . . . . . . . . . . . . . Matter . | . . . . . . . . . . . . . . . . . . . . . . . . . . . . . . Time . | . . . . . . . . . . . . . . . . . . . . . . . . . . . . . . Total Robot Build Rating . | . . . . . . . . . . . . . . . . . . . . . . . . . . . . . . Part Schematics Acquired 6 | . . . 3 . . . . . 3 . . . . . . . . . . . . . . . . . . . . Parts Built 2 | . . . . . . . . . . . . . . . . . 2 . . . . . . . . . . . . Matter 278 | . . . . . . . . . . . . . . . . . 278 . . . . . . . . . . . . Time 46 | . . . . . . . . . . . . . . . . . 46 . . . . . . . . . . . . Total Part Build Rating 18 | . . . . . . . . . . . . . . . . . 18 . . . . . . . . . . . . Parts Repaired . | . . . . . . . . . . . . . . . . . . . . . . . . . . . . . . Time . | . . . . . . . . . . . . . . . . . . . . . . . . . . . . . . Parts Recycled . | . . . . . . . . . . . . . . . . . . . . . . . . . . . . . . Recycled Matter . | . . . . . . . . . . . . . . . . . . . . . . . . . . . . . . Retrieved Matter . | . . . . . . . . . . . . . . . . . . . . . . . . . . . . . . Retrieved Components . | . . . . . . . . . . . . . . . . . . . . . . . . . . . . . . Parts Scanalyzed 7 | . . . 3 . . . . . 3 . . . . . . . . . . . . . . . . . 1 . . Part Schematics Acquired 6 | . . . 3 . . . . . 3 . . . . . . . . . . . . . . . . . . . . Parts Damaged . | . . . . . . . . . . . . . . . . . . . . . . . . . . . . . . Bothacking | -11 -10 -10 -9 -9 -9 -8 -8 -8 -8 -8 -7 -7 -7 -7 -6 -6 -5 -5 -4 -4 -3 -3 -3 -3 -2 -2 -1 -1 -1 ------------ Run | Scr Mat Min Mat Min Exi Min Mat Gar Mat Gar Fac Gar Fac Gar Fac Gar Fac Gar Fac Gar Res Gar Res Gar Res Gar Acc Gar Acc Used RIF Installer 11 | . . . . . . . . 1 . 1 . 1 . 1 . 1 . 1 . 1 . 1 . 1 . 1 . 1 . Hotswap 1 | . . . . . . . . . . . . . . 1 . . . . . . . . . . . . . . . Command Fork 1 | . . . . . . . . . . . . . . . . . . . . . . . . . . 1 . . . Signal Jammer 1 | . . . . . . . . . . . . . . . . . . . . . . 1 . . . . . . . Zone Cloak 2 | . . . . . . . . . . . . . . . . . . 1 . 1 . . . . . . . . . Patrol Navigation 1 | . . . . . . . . . . . . 1 . . . . . . . . . . . . . . . . . Watcher Feeds 1 | . . . . . . . . . . 1 . . . . . . . . . . . . . . . . . . . Structural Interface 1 | . . . . . . . . . . . . . . . . . . . . . . . . . . . . 1 . Program Shield 1 | . . . . . . . . . . . . . . . . . . . . . . . . 1 . . . . . Autoassimilate 1 | . . . . . . . . . . . . . . . . 1 . . . . . . . . . . . . . Robots Hacked 204 | . . . . . . . . . . . . 7 . 8 3 6 3 15 2 19 6 19 3 17 2 17 13 33 31 Non-combat 14 | . . . . . . . . . . . . . . . 1 . 2 . . . 2 . 2 . 2 . 2 . 3 Combat 190 | . . . . . . . . . . . . 7 . 8 2 6 1 15 2 19 4 19 1 17 . 17 11 33 28 Autoassimilated 34 | . . . . . . . . . . . . . . . . 1 1 2 1 7 1 1 . 3 . 4 3 5 5 Robot Hacks Applied 185 | . . . . . . . . . . . . 7 . 8 6 5 2 14 1 14 6 18 5 15 2 13 11 30 28 parse_system 5 | . . . . . . . . . . . . . . . . 1 . 1 . . . . . . . . . . 3 no_distress 1 | . . . . . . . . . . . . . . . . . . . . . . . . . . . . . 1 map_walls 4 | . . . . . . . . . . . . . . . . . 1 . . . . . . . 1 . 2 . . map_earth 1 | . . . . . . . . . . . . . . . . . . . . . 1 . . . . . . . . drop_inventory 3 | . . . . . . . . . . . . . . . . . 1 . . . 1 . 1 . . . . . . purge_threat 6 | . . . . . . . . . . . . . . . 3 . . . . . . . 2 . 1 . . . . block_reporting 2 | . . . . . . . . . . . . . . . 1 . . . . . . . 1 . . . . . . map_route 1 | . . . . . . . . . . . . . . . . . . . . . . . . . . . . . 1 find_shortcuts 3 | . . . . . . . . . . . . . . 1 . . . . . 1 . . . . . . . 1 . find_garrison 3 | . . . . . . . . . . . . . . . . . . . . . 1 . . . . . 2 . . reboot_propulsion 1 | . . . . . . . . . . . . . . . . 1 . . . . . . . . . . . . . scatter_targeting 4 | . . . . . . . . . . . . . . . . . . . . 1 . . . 1 . 1 . 1 . mark_system 2 | . . . . . . . . . . . . . . . . . . . . . . . . . . 1 . . 1 link_complan 2 | . . . . . . . . . . . . . . . . . . . . . . 1 . . . . . 1 . broadcast_data 2 | . . . . . . . . . . . . . . 1 . . . 1 . . . . . . . . . . . disrupt_area 2 | . . . . . . . . . . . . . . 1 . . . . . 1 . . . . . . . . . spike_heat 1 | . . . . . . . . . . . . . . . . . . 1 . . . . . . . . . . . overload_power 1 | . . . . . . . . . . . . . . . . . . . 1 . . . . . . . . . . amplify_resonance 25 | . . . . . . . . . . . . 2 . 3 . 1 . 2 . 4 . 4 . 3 . . . 5 1 wipe_record 1 | . . . . . . . . . . . . . . . . . . . . . . . . . . . . 1 . disable_weapons 1 | . . . . . . . . . . . . . . . . . . . . . . . . 1 . . . . . reboot_system 3 | . . . . . . . . . . . . . . 1 . . . . . . . . . . . . . 2 . overwrite_iff 48 | . . . . . . . . . . . . 1 . . . . . 3 . 4 1 7 1 4 . 7 3 8 9 streamctrl_high 11 | . . . . . . . . . . . . 1 . . . 1 . 2 . 1 . 2 . . . . . 4 . formatsys_high 52 | . . . . . . . . . . . . 3 . 1 2 1 . 4 . 2 2 4 . 6 . 4 4 7 12 Relay Couplers Released 178 | . . . . . . . . 18 . 13 . 16 . 13 . 18 3 15 . 16 . 18 . 14 . 18 . 16 . Machine Destruction 175 | . . . . . . . . 18 . 13 . 16 . 13 . 18 . 15 . 16 . 18 . 14 . 18 . 16 . Programmers 3 | . . . . . . . . . . . . . . . . . 3 . . . . . . . . . . . . Attached 44 | . . . . . . . . . . . . 3 . 3 3 1 1 5 . 5 . 3 . 7 . 5 . 5 3 Robots Rewired 4 | . . . . . . . . . . . . 4 . . . . . . . . . . . . . . . . . Allies Hacked 4 | . . . . . . . . . . . . . . . . . . . . . 1 . 1 2 . . . . . Hacks Repelled . | . . . . . . . . . . . . . . . . . . . . . . . . . . . . . . Allies | -11 -10 -10 -9 -9 -9 -8 -8 -8 -8 -8 -7 -7 -7 -7 -6 -6 -5 -5 -4 -4 -3 -3 -3 -3 -2 -2 -1 -1 -1 -------- Run | Scr Mat Min Mat Min Exi Min Mat Gar Mat Gar Fac Gar Fac Gar Fac Gar Fac Gar Fac Gar Res Gar Res Gar Res Gar Acc Gar Acc Total Allies 166 | . . . . 4 . . . . 1 . . 9 . 1 2 3 1 11 1 13 4 14 1 13 . 15 11 26 36 Largest Group 17 | . . . . 4 4 3 3 1 1 . . 5 5 2 2 2 2 2 1 3 4 4 3 6 6 4 6 9 17 Highest-Rated Group 1033 | . . . . 71 71 40 40 16 26 . . 105 105 42 64 64 61 98 49 152 207 256 192 368 368 256 394 595 1033 Highest-Rated Ally 69 | . . . . 31 31 16 16 16 26 . . 29 21 38 32 32 32 49 49 58 64 64 64 64 64 69 69 69 69 Total Orders 72 | . . . . . . . . . . . . 3 2 1 . 2 . 3 . 5 1 7 4 12 4 17 2 6 3 STAY 48 | . . . . . . . . . . . . 3 1 1 . 1 . 2 . 3 1 5 3 9 3 9 1 5 1 FOLLOW 24 | . . . . . . . . . . . . . 1 . . 1 . 1 . 2 . 2 1 3 1 8 1 1 2 Ally Attacks 1048 | . . . . . . . 25 8 . . . 13 59 19 5 6 18 48 3 38 24 43 31 32 22 60 65 90 439 Total Damage 33544 | . . . . . . . 243 86 . . . 182 1155 386 280 272 428 1258 78 1011 842 1066 1258 947 892 1953 2322 2863 16022 Kills 182 | . . . . . . . 4 1 . . . 1 10 5 2 1 5 7 . 9 3 7 6 8 3 6 12 11 81 Allies Corrupted 7 | . . . . . . . . . . . . . . . . . . . . . 1 . 2 1 . . 1 . 2 Allies Melted 1 | . . . . . . . . . . . . . . . . . . . . . 1 . . . . . . . . Intel | -11 -10 -10 -9 -9 -9 -8 -8 -8 -8 -8 -7 -7 -7 -7 -6 -6 -5 -5 -4 -4 -3 -3 -3 -3 -2 -2 -1 -1 -1 ------- Run | Scr Mat Min Mat Min Exi Min Mat Gar Mat Gar Fac Gar Fac Gar Fac Gar Fac Gar Fac Gar Res Gar Res Gar Res Gar Acc Gar Acc Robot Analysis Total . | . . . . . . . . . . . . . . . . . . . . . . . . . . . . . . Derelict Logs Recovered 1 | . . . . 1 . . . . . . . . . . . . . . . . . . . . . . . . . Drone Launches . | . . . . . . . . . . . . . . . . . . . . . . . . . . . . . . Drone Recoveries . | . . . . . . . . . . . . . . . . . . . . . . . . . . . . . . Exploration | -11 -10 -10 -9 -9 -9 -8 -8 -8 -8 -8 -7 -7 -7 -7 -6 -6 -5 -5 -4 -4 -3 -3 -3 -3 -2 -2 -1 -1 -1 ------------- Run | Scr Mat Min Mat Min Exi Min Mat Gar Mat Gar Fac Gar Fac Gar Fac Gar Fac Gar Fac Gar Res Gar Res Gar Res Gar Acc Gar Acc Turns Passed 35070 | 42 129 382 503 119 467 76 272 1388 1298 1418 630 2148 843 1223 562 1981 1069 2475 993 2115 645 2077 707 2668 769 2888 792 3028 1363 Spaces Moved 20488 | 36 105 284 334 91 435 62 193 835 934 902 388 1297 669 772 408 984 495 1386 612 1210 383 1242 414 1469 451 1542 483 1477 595 Core 14 | 14 . . . . . . . . . . . . . . . . . . . . . . . . . . . . . Treads . | . . . . . . . . . . . . . . . . . . . . . . . . . . . . . . Legs 1938 | . . . . . . . . . . . . . . . . . . 137 . . . . . . . 20 . 1186 595 Wheels 18536 | 22 105 284 334 91 435 62 193 835 934 902 388 1297 669 772 408 984 495 1249 612 1210 383 1242 414 1469 451 1522 483 291 . Hover . | . . . . . . . . . . . . . . . . . . . . . . . . . . . . . . Flight . | . . . . . . . . . . . . . . . . . . . . . . . . . . . . . . Fastest Speed 50 | 50 100 100 90 90 100 100 96 96 96 96 105 110 110 115 115 115 110 110 107 107 110 110 110 120 120 120 114 114 144 Average Speed 122 | 84 100 102 96 96 100 100 99 113 101 108 110 111 114 115 119 138 144 128 109 115 115 117 119 142 120 142 120 146 149 Slowest Speed 300 | 100 100 110 110 110 100 100 110 130 130 130 115 130 115 115 130 180 190 190 120 140 120 200 120 210 120 220 150 300 210 Overloaded Moves . | . . . . . . . . . . . . . . . . . . . . . . . . . . . . . . Propulsion Burnouts . | . . . . . . . . . . . . . . . . . . . . . . . . . . . . . . Robots Hopped 2 | . . . . . . . . . . . . . . . . . . . . . . . . . . . . . 2 Cave-ins Triggered . | . . . . . . . . . . . . . . . . . . . . . . . . . . . . . . Exploration Rate (%) 47 | 4 19 58 34 23 71 19 22 83 76 69 12 87 17 87 13 91 14 83 17 89 21 88 11 69 11 92 16 99 24 Regions Visited 29 Branch Regions 4 Pre-discovered Areas 3 | . . . . 1 . . . . 1 . . . . . . . . . 1 . . . . . . . . . . Known Exits Taken 12 | . . . . . . 1 1 . 1 . 1 . 1 . 1 . 1 . 1 . 1 . 1 . 1 . 1 . . Unknown Exits Taken 6 | 1 1 1 1 1 1 . . . . . . . . . . . . . . . . . . . . . . . . Scrap Searched . | . . . . . . . . . . . . . . . . . . . . . . . . . . . . . . Spaces Dug 46 | . . . . . . . . . 1 . . . . . . . 2 . 7 . 3 5 . . . . 2 25 1 Terrain Destroyed 341 | . . . . . . . . 23 2 12 . . . 1 1 19 23 15 13 11 3 9 2 4 . 4 4 39 156 Melee 12 | . . . . . . . . . 1 . . . . . . . 2 . 7 . 1 . . . . . . 1 . Projectile 98 | . . . . . . . . . 1 . . . . 1 1 3 2 2 6 11 2 9 2 4 . 4 4 37 9 AOE 231 | . . . . . . . . 23 . 12 . . . . . 16 19 13 . . . . . . . . . 1 147 Terrain Rammed . | . . . . . . . . . . . . . . . . . . . . . . . . . . . . . . Walls Destroyed . | . . . . . . . . . . . . . . . . . . . . . . . . . . . . . . Machines Disabled . | . . . . . . . . . . . . . . . . . . . . . . . . . . . . . . Actions | -11 -10 -10 -9 -9 -9 -8 -8 -8 -8 -8 -7 -7 -7 -7 -6 -6 -5 -5 -4 -4 -3 -3 -3 -3 -2 -2 -1 -1 -1 --------- Run | Scr Mat Min Mat Min Exi Min Mat Gar Mat Gar Fac Gar Fac Gar Fac Gar Fac Gar Fac Gar Res Gar Res Gar Res Gar Acc Gar Acc Total 28062 | 45 118 336 433 109 467 74 243 1124 1179 1211 572 1825 729 1019 454 1467 779 1947 876 1761 547 1728 605 1879 657 2101 659 2203 915 Wait 3775 | . . 17 7 9 30 12 30 130 156 120 144 212 28 50 10 256 202 218 196 250 84 229 154 174 160 315 102 465 15 Move 20465 | 35 104 283 333 90 434 61 193 834 934 901 387 1296 669 771 408 983 494 1385 612 1209 383 1241 414 1468 451 1541 483 1476 592 Hop 1 | . . . . . . . . . . . . . . . . . . . . . . . . . . . . . 1 Pick Up 398 | 4 4 7 15 1 1 . 5 14 4 20 3 21 4 20 6 20 7 45 4 28 7 28 5 24 5 21 8 30 37 Fast Attach 153 | 3 . . 4 1 . . . 2 15 4 10 8 4 1 . 1 7 5 8 4 10 9 3 11 8 11 9 7 8 Attach 262 | 3 2 4 8 1 1 . 2 10 1 7 . 10 2 5 4 13 3 35 4 24 4 16 1 10 2 13 7 21 49 Detach 36 | . . . . . . . . . . . . 1 . 1 . . . 7 1 4 2 4 . . . 1 . 7 8 Swap 208 | . . 1 3 1 . . . 8 4 12 3 21 3 8 5 19 5 15 5 11 8 6 2 19 3 15 2 12 17 Drop 352 | . 1 . 11 . 1 . . 9 15 9 14 24 10 24 1 21 10 26 6 18 15 22 7 26 12 23 12 20 15 Fire 1673 | . 7 24 52 6 . 1 13 85 49 63 11 87 9 78 18 104 49 145 24 127 30 123 18 112 16 96 35 132 159 Melee 84 | . . . . . . . . . 1 19 . 33 . . . . 2 4 7 13 4 . . . . . . 1 . Ram . | . . . . . . . . . . . . . . . . . . . . . . . . . . . . . . Kick . | . . . . . . . . . . . . . . . . . . . . . . . . . . . . . . Crush . | . . . . . . . . . . . . . . . . . . . . . . . . . . . . . . Escape Stasis 578 | . . . . . . . . 32 . 56 . 54 . 60 . 48 . 61 8 72 . 48 . 32 . 63 . 31 13 Rewire 77 | . . . . . . . . . . . . 58 . 1 2 2 . 1 1 1 . 2 1 3 . 2 1 1 1 Trap . | . . . . . . . . . . . . . . . . . . . . . . . . . . . . . . Miscellaneous . | . . . . . . . . . . . . . . . . . . . . . . . . . . . . . . Route ------- -11/Scrapyard -10/Materials -10/Mines -9/Materials (discovered 4 exits: Mat x3 / [*Min]) -9/Mines -9/Exiles -8/Mines -8/Materials (discovered 3 exits: *Fac x2 / Gar) -8/Garrison (discovered 3 exits: *Mat x3) -8/Materials (discovered 3 exits: *Fac x2 / Gar) -8/Garrison (discovered 3 exits: *Fac x3) -7/Factory (discovered 2 exits: *Fac / Gar) -7/Garrison (discovered 3 exits: *Fac x3) -7/Factory (discovered 5 exits: Fac x4 / Gar) -7/Garrison (discovered 3 exits: *Fac x3) -6/Factory (discovered 2 exits: [*Low] / Gar) -6/Garrison (discovered 3 exits: *Fac x3) -5/Factory -5/Garrison (discovered 3 exits: *Fac x3) -4/Factory -4/Garrison (discovered 3 exits: *Res x3) -3/Research -3/Garrison (discovered 3 exits: *Res x3) -3/Research -3/Garrison (discovered 2 exits: *Res x2) -2/Research -2/Garrison (discovered 3 exits: *Acc x3) -1/Access -1/Garrison (discovered 3 exits: [*Acc x3]) -1/Access History --------- Turn | Location | Event 26 | -11/Scrapyard | Discovered new exit (range 15) 43 | -11/Scrapyard | Entered Materials 118 | -10/Materials | Discovered new exit (range 6) 172 | -10/Materials | Entered Mines 208 | -10/Mines | Met a Derelict bent on vengeance 290 | -10/Mines | Assembled infested the area 300 | -10/Mines | Build established: Mutant 367 | -10/Mines | Lost 4 parts (1p1n2w) 394 | -10/Mines | Core integrity fell below 50% 533 | -10/Mines | Discovered new exit (range 14) 554 | -10/Mines | Entered Materials 554 | -9/Materials | Evolved 2 slots: Utility x2 638 | -9/Materials | Identified exit to Materials 678 | -9/Materials | Discovered new exit (range 13) 1057 | -9/Materials | Entered Mines 1058 | -9/Mines | Assisted by bots powering up and referring to "LRC-V3" 1075 | -9/Mines | Received a Rocket Launcher from a helpful Derelict 1113 | -9/Mines | Escorted by a lone wolf Derelict 1133 | -9/Mines | Learned location of Storage (-9) 1163 | -9/Mines | Deemed a non-threat by the Exiles lab entrance 1163 | -9/Mines | Discovered new exit (range 5) 1176 | -9/Mines | Entered Exiles 1176 | -9/Exiles | Accompanied by 4 allies 1203 | -9/Exiles | Met 8R-AWN 1221 | -9/Exiles | Met EX-HEX 1260 | -9/Exiles | Met EX-BIN 1274 | -9/Exiles | Aligned with FarCom system 1275 | -9/Exiles | Given EX-Vault access code 1298 | -9/Exiles | Opened EX-Vault 1321 | -9/Exiles | Warned to stay clear of 0b10 Research branches 1349 | -9/Exiles | Met EX-DEC 1447 | -9/Exiles | Build established: Scavenger-Mutant 1533 | -9/Exiles | Found Firepult 1615 | -9/Exiles | Discovered new exit (range 14) 1643 | -9/Exiles | Left Exiles lab with Firepult 1643 | -9/Exiles | Entered Mines 1643 | -8/Mines | Accompanied by 3 allies 1698 | -8/Mines | Discovered exit to Materials (range 8) 1719 | -8/Mines | Entered Materials 1719 | -8/Materials | Accompanied by 3 allies 1719 | -8/Materials | Evolved 2 slots: Propulsion x1, Weapon x1 1720 | -8/Materials | Identified exit to Factory 1935 | -8/Materials | Discovered exit to Factory (range 9) 1991 | -8/Materials | Identified exit to Garrison 1991 | -8/Materials | Entered Garrison 1991 | -8/Garrison | Accompanied by 1 ally 2012 | -8/Garrison | Build established: Scavenger-Skirmisher 2076 | -8/Garrison | Triggered checkpoint 2153 | -8/Garrison | Garrison Relay disabled 2303 | -8/Garrison | Triggered checkpoint 2341 | -8/Garrison | Destroyed 8 combat bots 2384 | -8/Garrison | Discovered new exit (range 14) 2483 | -8/Garrison | Triggered checkpoint 2515 | -8/Garrison | Garrison Relay disabled 2620 | -8/Garrison | Triggered checkpoint 2698 | -8/Garrison | Triggered checkpoint 2716 | -8/Garrison | Garrison Relay disabled 2756 | -8/Garrison | Discovered new exit (range 12) 2777 | -8/Garrison | Installed Relay Interface Framework 2884 | -8/Garrison | Garrison Relay disabled 2946 | -8/Garrison | Triggered checkpoint 2956 | -8/Garrison | Triggered checkpoint 3000 | -8/Garrison | Triggered checkpoint 3025 | -8/Garrison | Build established: Skirmisher 3159 | -8/Garrison | Core integrity fell below 50% 3319 | -8/Garrison | Discovered new exit (range 12) 3379 | -8/Garrison | Entered Materials 3670 | -8/Materials | Build established: Scavenger-Skirmisher 3769 | -8/Materials | Discovered exit to Factory (range 8) 4025 | -8/Materials | Discovered exit to Factory (range 3) 4677 | -8/Materials | Identified exit to Garrison 4677 | -8/Materials | Entered Garrison 4834 | -8/Garrison | Triggered checkpoint 4876 | -8/Garrison | Discovered exit to Factory (range 8) 4914 | -8/Garrison | Triggered checkpoint 4991 | -8/Garrison | Garrison Relay disabled 5204 | -8/Garrison | Core integrity fell below 20% 5216 | -8/Garrison | Triggered checkpoint 5247 | -8/Garrison | Triggered checkpoint 5276 | -8/Garrison | Destroyed 8 combat bots 5361 | -8/Garrison | Discovered exit to Factory (range 10) 5377 | -8/Garrison | Expanded RIF knowledge: Patrol Navigation 5412 | -8/Garrison | Triggered checkpoint 5456 | -8/Garrison | Garrison Relay disabled 5647 | -8/Garrison | Discovered exit to Factory (range 11) 5720 | -8/Garrison | Garrison Relay disabled 6016 | -8/Garrison | Build established: Hauler-Mutant 6095 | -8/Garrison | Entered Factory 6095 | -7/Factory | Evolved 2 slots: Utility x2 6408 | -7/Factory | Build established: Hauler-Skirmisher 6442 | -7/Factory | Discovered new exit (range 7) 6724 | -7/Factory | Identified exit to Garrison 6725 | -7/Factory | Entered Garrison 6746 | -7/Garrison | Triggered checkpoint 6977 | -7/Garrison | Triggered checkpoint 7063 | -7/Garrison | Garrison Relay disabled 7106 | -7/Garrison | Build established: Bothacker-Mutant 7260 | -7/Garrison | Triggered checkpoint 7288 | -7/Garrison | Destroyed 7 combat bots 7420 | -7/Garrison | Discovered new exit (range 12) 7450 | -7/Garrison | Triggered checkpoint 7465 | -7/Garrison | Garrison Relay disabled 7530 | -7/Garrison | Triggered checkpoint 7608 | -7/Garrison | Discovered new exit (range 14) 7629 | -7/Garrison | Expanded RIF knowledge: Watcher Feeds 7654 | -7/Garrison | Triggered checkpoint 7684 | -7/Garrison | Garrison Relay disabled 8072 | -7/Garrison | Build established: Bothacker-Skirmisher 8117 | -7/Garrison | Discovered new exit (range 10) 8182 | -7/Garrison | Triggered checkpoint 8214 | -7/Garrison | Core integrity fell below 50% 8284 | -7/Garrison | Triggered checkpoint 8315 | -7/Garrison | Garrison Relay disabled 8873 | -7/Garrison | Entered Factory 8873 | -7/Factory | Accompanied by 5 allies 9358 | -7/Factory | Identified exit to Factory 9714 | -7/Factory | Identified exit to Garrison 9716 | -7/Factory | Entered Garrison 9716 | -7/Garrison | Accompanied by 2 allies 9784 | -7/Garrison | Triggered checkpoint 9818 | -7/Garrison | Garrison Relay disabled 9970 | -7/Garrison | Triggered checkpoint 10008 | -7/Garrison | Triggered checkpoint 10024 | -7/Garrison | Build established: Bothacker-Mutant 10128 | -7/Garrison | Discovered exit to Factory (range 10) 10252 | -7/Garrison | Discovered exit to Factory (range 8) 10307 | -7/Garrison | Triggered checkpoint 10406 | -7/Garrison | Garrison Relay disabled 10530 | -7/Garrison | Triggered checkpoint 10559 | -7/Garrison | Garrison Relay disabled 10624 | -7/Garrison | Triggered checkpoint 10693 | -7/Garrison | Discovered exit to Factory (range 10) 10710 | -7/Garrison | Expanded RIF knowledge: Hotswap 10740 | -7/Garrison | Triggered checkpoint 10804 | -7/Garrison | Garrison Relay disabled 10939 | -7/Garrison | Entered Factory 10939 | -6/Factory | Evolved 2 slots: Utility x2 11243 | -6/Factory | Discovered new exit (range 10) 11331 | -6/Factory | Build established: Botlord-Mutant 11501 | -6/Factory | Identified exit to Garrison 11501 | -6/Factory | Entered Garrison 11507 | -6/Garrison | Expanded RIF knowledge: Autoassimilate 11556 | -6/Garrison | Triggered checkpoint 11736 | -6/Garrison | Garrison Relay disabled 11786 | -6/Garrison | Triggered checkpoint 11969 | -6/Garrison | Spotted B-75 Beast 11993 | -6/Garrison | Triggered checkpoint 11995 | -6/Garrison | Destroyed B-75 Beast 12318 | -6/Garrison | Triggered checkpoint 12421 | -6/Garrison | Discovered new exit (range 10) 12456 | -6/Garrison | Triggered checkpoint 12466 | -6/Garrison | Garrison Relay disabled 12703 | -6/Garrison | Discovered new exit (range 14) 12753 | -6/Garrison | Triggered checkpoint 12811 | -6/Garrison | Lost 3 parts (1n2w) 12834 | -6/Garrison | Garrison Relay disabled 13193 | -6/Garrison | Discovered new exit (range 10) 13236 | -6/Garrison | Triggered checkpoint 13282 | -6/Garrison | Garrison Relay disabled 13482 | -6/Garrison | Entered Factory 13482 | -5/Factory | Accompanied by 1 ally 13482 | -5/Factory | Evolved 2 slots: Utility x2 13556 | -5/Factory | Fabricated Quantum Reactor (x2) 13829 | -5/Factory | Identified exit to Garrison 14551 | -5/Factory | Entered Garrison 14761 | -5/Garrison | Lost 5 parts (1p1n3w) 14805 | -5/Garrison | Spotted B-75 Beast 14850 | -5/Garrison | Triggered checkpoint 14935 | -5/Garrison | Triggered checkpoint 14981 | -5/Garrison | Garrison Relay disabled 15204 | -5/Garrison | Triggered checkpoint 15260 | -5/Garrison | Destroyed B-75 Beast 15554 | -5/Garrison | Discovered new exit (range 13) 15644 | -5/Garrison | Triggered checkpoint 15660 | -5/Garrison | Garrison Relay disabled 15803 | -5/Garrison | Discovered new exit (range 14) 15920 | -5/Garrison | Triggered checkpoint 15973 | -5/Garrison | Discovered new exit (range 15) 16136 | -5/Garrison | Garrison Relay disabled 16431 | -5/Garrison | Expanded RIF knowledge: Zone Cloak 16497 | -5/Garrison | Garrison Relay disabled 16629 | -5/Garrison | Triggered checkpoint 17026 | -5/Garrison | Entered Factory 17026 | -4/Factory | Evolved 2 slots: Propulsion x1, Utility x1 17061 | -4/Factory | Build established: Botlord-Skirmisher 17740 | -4/Factory | Build established: Botlord-Mutant 18019 | -4/Factory | Identified exit to Garrison 18019 | -4/Factory | Entered Garrison 18025 | -4/Garrison | Expanded RIF knowledge: Zone Cloak 18040 | -4/Garrison | Triggered checkpoint 18373 | -4/Garrison | Triggered checkpoint 18407 | -4/Garrison | Garrison Relay disabled 18639 | -4/Garrison | Spotted B-86 Titan 18644 | -4/Garrison | Destroyed B-86 Titan 18867 | -4/Garrison | Triggered checkpoint 18940 | -4/Garrison | Lost 3 parts (1n2w) 19061 | -4/Garrison | Triggered checkpoint 19138 | -4/Garrison | Triggered checkpoint 19294 | -4/Garrison | Discovered new exit (range 10) 19446 | -4/Garrison | Garrison Relay disabled 19525 | -4/Garrison | Discovered new exit (range 15) 19566 | -4/Garrison | Triggered checkpoint 19620 | -4/Garrison | Garrison Relay disabled 19890 | -4/Garrison | Discovered new exit (range 10) 19912 | -4/Garrison | Triggered checkpoint 19941 | -4/Garrison | Garrison Relay disabled 20134 | -4/Garrison | Entered Research 20134 | -3/Research | Accompanied by 3 allies 20134 | -3/Research | Evolved 2 slots: Utility x1, Weapon x1 20268 | -3/Research | Found Prototype Processor 20268 | -3/Research | Identified Exp. Melee Analysis Suite 20773 | -3/Research | Identified exit to Garrison 20779 | -3/Research | Entered Garrison 20779 | -3/Garrison | Accompanied by 1 ally 20830 | -3/Garrison | Triggered checkpoint 20882 | -3/Garrison | Garrison Relay disabled 21286 | -3/Garrison | Spotted B-86 Titan 21320 | -3/Garrison | Destroyed B-86 Titan 21410 | -3/Garrison | Triggered checkpoint 21416 | -3/Garrison | Triggered checkpoint 21548 | -3/Garrison | Discovered new exit (range 15) 21578 | -3/Garrison | Expanded RIF knowledge: Signal Jamming 21614 | -3/Garrison | Triggered checkpoint 21649 | -3/Garrison | Garrison Relay disabled 21739 | -3/Garrison | Triggered checkpoint 21775 | -3/Garrison | Lost 4 parts (1n3w) 21948 | -3/Garrison | Triggered checkpoint 22022 | -3/Garrison | Garrison Relay disabled 22082 | -3/Garrison | Discovered new exit (range 15) 22525 | -3/Garrison | Discovered new exit (range 10) 22636 | -3/Garrison | Triggered checkpoint 22696 | -3/Garrison | Garrison Relay disabled 22856 | -3/Garrison | Entered Research 22856 | -3/Research | Accompanied by 3 allies 23549 | -3/Research | Identified exit to Garrison 23563 | -3/Research | Entered Garrison 23563 | -3/Garrison | Accompanied by 1 ally 23589 | -3/Garrison | Triggered checkpoint 23655 | -3/Garrison | Triggered checkpoint 23862 | -3/Garrison | Garrison Relay disabled 24268 | -3/Garrison | Triggered checkpoint 24410 | -3/Garrison | Triggered checkpoint 24444 | -3/Garrison | Triggered checkpoint 24752 | -3/Garrison | Triggered checkpoint 24780 | -3/Garrison | Garrison Relay disabled 24904 | -3/Garrison | Discovered new exit (range 10) 24928 | -3/Garrison | Expanded RIF knowledge: Program Shield 25223 | -3/Garrison | Discovered new exit (range 11) 25366 | -3/Garrison | Triggered checkpoint 25792 | -3/Garrison | Garrison Relay disabled 26231 | -3/Garrison | Entered Research 26231 | -2/Research | Accompanied by 6 allies 26231 | -2/Research | Evolved 2 slots: Power x1, Utility x1 26611 | -2/Research | Found Fusion Bomb Launcher 26973 | -2/Research | Found Prototype Device 26973 | -2/Research | Identified EM Disruption Field 27000 | -2/Research | Identified exit to Garrison 27000 | -2/Research | Entered Garrison 27119 | -2/Garrison | Triggered checkpoint 27148 | -2/Garrison | Garrison Relay disabled 27225 | -2/Garrison | Spotted B-90 Cyclops 27230 | -2/Garrison | Triggered checkpoint 27412 | -2/Garrison | Destroyed B-90 Cyclops 27689 | -2/Garrison | Triggered checkpoint 27879 | -2/Garrison | Discovered new exit (range 12) 27914 | -2/Garrison | Triggered checkpoint 28105 | -2/Garrison | Garrison Relay disabled 28200 | -2/Garrison | Discovered new exit (range 10) 28246 | -2/Garrison | Triggered checkpoint 28337 | -2/Garrison | Garrison Relay disabled 28492 | -2/Garrison | Triggered checkpoint 28558 | -2/Garrison | Triggered checkpoint 28645 | -2/Garrison | Discovered new exit (range 11) 28673 | -2/Garrison | Expanded RIF knowledge: Command Fork 28711 | -2/Garrison | Triggered checkpoint 28889 | -2/Garrison | Garrison Relay disabled 29888 | -2/Garrison | Entered Access 29888 | -1/Access | Accompanied by 4 allies 29888 | -1/Access | Evolved 2 slots: Propulsion x1, Utility x1 30432 | -1/Access | Garrison activated, responded to threat 30638 | -1/Access | First assault squad dispatched 30671 | -1/Access | Spotted B-99 Colossus 30679 | -1/Access | Identified exit to Garrison 30680 | -1/Access | Entered Garrison 30680 | -1/Garrison | Accompanied by 1 ally 30939 | -1/Garrison | Triggered checkpoint 31057 | -1/Garrison | Spotted B-99 Colossus 31155 | -1/Garrison | Allies destroyed B-99 Colossus 31180 | -1/Garrison | Lost 6 parts (2p1n1u2w) 31186 | -1/Garrison | Found Prototype Ballistic Gun 31187 | -1/Garrison | Identified Multirail 31304 | -1/Garrison | Triggered checkpoint 31343 | -1/Garrison | Triggered checkpoint 31360 | -1/Garrison | Triggered checkpoint 31595 | -1/Garrison | Discovered new exit (range 12) 31620 | -1/Garrison | Triggered checkpoint 31914 | -1/Garrison | Discovered new exit (range 11) 31934 | -1/Garrison | Triggered checkpoint 32056 | -1/Garrison | Garrison Relay disabled 32194 | -1/Garrison | Expanded RIF knowledge: Structural Interface 32386 | -1/Garrison | Garrison Relay disabled 32613 | -1/Garrison | Garrison Relay disabled 32626 | -1/Garrison | Triggered checkpoint 33126 | -1/Garrison | Discovered new exit (range 12) 33184 | -1/Garrison | Triggered checkpoint 33311 | -1/Garrison | Garrison Relay disabled 33708 | -1/Garrison | Entered Access 33708 | -1/Access | Accompanied by 8 allies 33958 | -1/Access | First assault squad dispatched 34371 | -1/Access | Garrison activated, responded to threat 34380 | -1/Access | High security lockdown imminent 34460 | -1/Access | High security lockdown engaged 34568 | -1/Access | Destroyed Striker 34645 | -1/Access | Spotted Investigator 34645 | -1/Access | Allies destroyed Investigator 34670 | -1/Access | Spotted Executioner 34683 | -1/Access | Allies destroyed Executioner 34743 | -1/Access | Lost 3 parts (1p1u1w) 34761 | -1/Access | Spotted Striker 34765 | -1/Access | Garrison activated, responded to threat 34772 | -1/Access | Destroyed Striker 34801 | -1/Access | Spotted Executioner 34820 | -1/Access | Destroyed Executioner 34879 | -1/Access | Garrison activated, responded to threat 34880 | -1/Access | Spotted Executioner 34880 | -1/Access | Spotted Executioner 34880 | -1/Access | Spotted Executioner 34882 | -1/Access | Destroyed Executioner 34882 | -1/Access | Destroyed Executioner 34883 | -1/Access | Destroyed Executioner 34904 | -1/Access | Destroyed 33 combat bots 34915 | -1/Access | Lost 5 parts (1p2n2w) 34995 | -1/Access | Spotted Striker 35010 | -1/Access | Spotted Striker 35010 | -1/Access | Spotted Striker 35033 | -1/Access | System corruption reached 10% 35041 | -1/Access | Spotted Executioner 35041 | -1/Access | Spotted Executioner 35044 | -1/Access | Core integrity fell below 50% 35065 | -1/Access | Core integrity fell below 20% 35070 | -1/Access | Spotted Executioner 35071 | -1/Access | Destroyed by P-80 Master with Gamma Rifle Last Messages --------------- 35065_ U-05 Engineer lays Concrete. 35066_ Penetrated by Slug. 35066_ U-05 Engineer lays Concrete. 35067_ Penetrated by Slug. 35067_ Critical hit. 35067_ Hyp. Railgun destroyed. 35067_ Penetrated by Slug. 35067_ Relay Coupler [Grunt] destroyed. 35067_ U-05 Engineer lays Concrete. 35068_ The unstable cave ceiling collapses. 35068_ Phase Gun crushed. 35068_ The unstable cave ceiling collapses. 35068_ U-05 Engineer lays Concrete. 35068_ U-05 Engineer destroyed. 35069_ Slug penetrates Executioner. 35069_ Fusion Bomb Launcher destroyed. 35069_ U-05 Engineer lays Concrete. 35070_ Penetrated by Slug. 35070_ U-05 Engineer lays Concrete. 35071_ The unstable cave ceiling collapses. Map ----- +----------------------------------------------------+ | ?????????????????????????????????????????????????? | | ?????????????????????????????????????????????????? | | ?????????????????????????????????????????????????? | | ?????????????????????????????????????????????????? | | ?????????????????????????????????????????????????? | | ?????????????????????????????????????????????????? | | ?????????????????????????????????????????????????? | | ?????????????????????????????????????????????????? | | ?????????????????????????????????????????????????? | | ?????????????????????????????????????????????????? | | ?????????????????????????????????????????????????? | | ???????????????????????????????????????????????? | | ???????????????????????????????????????????? | | ??????? ???????????????????????????????????? | | ??????? ###################???????????????# | | ??????? =% #?###########???# | | ?????? [ ! ! ### ! #???# | | ??????? + #???# " | | ???????? s #?# #???# """ | | ????????? #?# ! #???# """ | | ?????????? #?# ! ##??# " | | ??????????? % = % ### # ### | | ????????? " = % %[ # # # # | | ??????# *%= % != ; # ## !##### | | ??????# = !!% !%[E;;; # [ # #### | | ??????# != =%*!%[@%! =!%= ==% | | ????### EEp = !*%% KKp E!% [% *%!= % [ | | ?+ i %p !% %%! %% % hum = !]=!%== | | ???#### p !% % %[= %%*m !] !!=%*% | | ??????#d ! " %* *%[ = | | ??????#### ###### ###+###### # # #% ### / = | | ??????????? # #? ??????? # # ## | | ??????????? # #?? ???????? #### # ## | | ???????????????## #?? ?????????####???### # | | ???????????????? #??? ??????????????????####### | | ???????????????;????"!!] ????????????????????????? | | ?????????????? ?????#!!] ????????????????????????? | | ????????????????????#!! ????????????????????????? | | ????????????????????# ?????????????????????????? | | ????????????????????# ?????????????????????????? | | ?????????????????????###?????????????????????????? | | ?????????????????????????????????????????????????? | | ?????????????????????????????????????????????????? | | ?????????????????????????????????????????????????? | | ?????????????????????????????????????????????????? | | ?????????????????????????????????????????????????? | | ?????????????????????????????????????????????????? | | ?????????????????????????????????????????????????? | | ?????????????????????????????????????????????????? | | ?????????????????????????????????????????????????? | +----------------------------------------------------+ Best States ------------- Heat Dissipation 109 Coolant Potential 120 Energy Generation 45 Energy Capacity 1590 Matter Stores 300 Matter Capacity 550 Sight Range 16 Terrain Scan Range 20 Terrain Scan Density 110 Armor Coverage 450 Resistance: KI 25 Resistance: EM 50 Core Shielding 20 Utility Shielding 66 Weapon Shielding 66 Point Defense Rating 160 Thermal Conversion 90 Evasion (%) 50 Targeting Accuracy 6 Melee Accuracy 12 Core Analysis 10 Energy Filtering 30 Kinecelleration 30 Relay Coupler Types 164 Relay Coupler Value 5 Item Schematics ----------------- Lrg. Storage Unit | -9/Materials | Scanalyzed Imp. EM Shotgun | -9/Materials | Scanalyzed Beam Cannon | -9/Materials | Scanalyzed Arm. Wheel | -8/Materials | Scanalyzed Rocket Launcher | -8/Materials | Scanalyzed Katana | -8/Materials | Scanalyzed Robot Schematics ------------------ None Fabricated ------------ Quantum Reactor | x2 | -5/Factory | Preloaded Alien Tech Used ----------------- None Achievements -------------- No Explosion For You Pyromaniac Challenges ------------ None Game ------ Seed LinkedPropulsionNanovents Manual? 0 Play Time 06:57:23 Cumulative 164.3 hours Start 2021.04.27 @ 01:37:50 End 2021.04.28 @ 16:17:52 Sessions 5 Manual Loads 0 Difficulty Rogue Special Mode None Game No. 63 Rogue 63 Adventurer 0 Explorer 0 Win Type - Total 2 Types 2/0/0/0/0/0/0/0/0 Lore% 60 Gallery% 71 Achievement% 53 Wizard Run 0 Options --------- ASCII 0 Keyboard 0 Movement Mouse Keybinds 0 Fullscreen 2 Font 12/Smallcaps Map View 83x54 Tactical HUD 1 Map Filters NONE Filters NONE Steam X RUN: 72cde6cf-d641-4d6d-98b0-c6e6ccb479b1